bitfinex-derivatives/quotes_ETHF0:USTF0_20260116
["timestamp","ask_amount","ask_price","bid_price","bid_amount"]
[1768574899347,0.0033933,3302.1,3300.2,0.63824458]
[1768574899649,0.15148,3301.9,3300.2,0.63824458]
[1768574899947,0.91737902,3301.8,3300.2,0.63824458]
[1768574900556,0.0033933,3302.1,3300.4,0.63565836]
[1768574900849,0.0033933,3302.1,3301.0,0.78716836]
[1768574901048,3.03,3303.4,3301.2,0.63565836]
[1768574901244,0.91765722,3303.3,3301.2,0.63565836]
[1768574901439,0.91765722,3303.2,3301.4,0.64931389]
[1768574901641,0.91765722,3303.1,3301.4,0.64931389]
[1768574901842,0.1514,3303.6,3301.4,0.64931389]
[1768574902135,0.91807192,3303.5,3301.4,0.64931389]
[1768574902336,0.91807192,3303.4,3301.4,0.80081389]
[1768574902536,0.91807192,3303.3,3301.4,0.80081389]
[1768574902746,0.91807192,3303.2,3301.4,0.80081389]
[1768574902953,0.15515646,3303.6,3301.4,0.80081389]
[1768574903152,0.91807414,3303.5,3301.6,0.64931389]
[1768574903343,0.91807414,3303.4,3301.6,0.64931389]
[1768574903651,0.00375646,3303.6,3301.9,0.64931389]
[1768574904043,0.00375646,3303.6,3302.1,0.64931389]
[1768574905052,0.00375646,3303.6,3302.3,0.64931389]
[1768574905247,0.00375646,3303.6,3302.3,0.80077389]
[1768574905442,3.18134,3304.8,3302.3,0.80077389]
[1768574905644,0.91830378,3304.7,3302.3,0.80077389]
[1768574905941,0.91830378,3304.6,3302.3,0.80077389]
[1768574906148,0.91830378,3304.5,3302.3,0.80077389]
[1768574906445,0.00242414,3304.5,3302.7,0.64931389]
[1768574906643,0.00242414,3304.5,3302.7,0.65243411]
[1768574906849,1.06941265,3304.4,3302.7,0.65243411]
[1768574907249,0.15137,3304.4,3302.7,0.65243411]
[1768574907439,0.00242414,3304.5,3302.7,0.65243411]
[1768574910549,0.15137,3304.2,3302.7,0.00312022]
[1768574911256,0.00242414,3304.5,3302.7,0.62903476]
[1768574911452,0.91697287,3304.4,3302.7,0.62903476]
[1768574911649,0.00242414,3304.5,3302.7,0.62903476]
[1768574915551,1.87082591,3304.3,3302.7,0.62903476]
[1768574916144,0.15137,3304.2,3302.7,0.62903476]
[1768574916350,0.15138,3304.1,3302.7,0.62903476]
[1768574916962,0.00242414,3304.5,3302.7,0.62903476]
[1768574917150,0.9157212,3304.4,3302.7,0.62903476]
[1768574917350,0.00242414,3304.5,3302.7,0.62903476]
[1768574919563,0.15136,3304.4,3302.7,0.62903476]
[1768574920058,0.15137,3304.2,3302.7,0.62903476]
[1768574920258,0.15137,3304.2,3302.7,0.00312022]
[1768574921461,0.15137,3304.2,3302.7,0.62903476]
[1768574921661,0.00242414,3304.5,3302.9,0.62591454]
[1768574921863,0.00242414,3304.5,3303.1,0.62591454]
[1768574924756,0.15132,3305.4,3303.5,0.62591454]
[1768574924958,0.15132,3305.3,3303.5,0.62591454]
[1768574925359,1.06753527,3305.2,3303.5,0.62591454]
[1768574925556,0.15133,3305.2,3303.5,0.62591454]
[1768574925752,0.15513173,3305.2,3303.5,0.62591454]
[1768574926266,0.00380173,3305.2,3303.5,0.62591454]
[1768574927265,0.00380173,3305.2,3303.5,0.77731454]
[1768574928562,0.00380173,3305.2,3303.5,0.62591454]
[1768574929180,0.00380173,3305.2,3303.7,0.62591454]
[1768574929382,0.00380173,3305.2,3303.8,0.15139]
[1768574929672,0.00380173,3305.2,3303.9,0.62591454]
[1768574930883,5.32882207,3306.3,3303.9,0.77729454]
[1768574931176,0.15129,3305.9,3303.9,0.77729454]
[1768574931375,0.91947032,3305.8,3303.9,0.77729454]
[1768574931574,0.91947032,3305.8,3304.1,0.61271332]
[1768574931764,0.91947032,3305.7,3304.1,0.61271332]
[1768574931972,0.91947032,3305.6,3304.1,0.61271332]
[1768574933875,0.0023099,3305.7,3304.3,0.61271332]
[1768574934067,0.15127,3306.5,3304.3,0.61271332]
[1768574934265,0.15128,3306.3,3304.3,0.76408332]
[1768574935177,2.02429721,3306.3,3304.3,0.76408332]
[1768574935369,2.65129218,3306.3,3304.3,0.76408332]
[1768574935686,0.15128,3306.2,3304.3,0.76408332]
[1768574935867,0.77829497,3305.7,3303.8,0.61271332]
[1768574936073,0.15132,3305.4,3303.4,0.61271332]
[1768574936278,1.87082591,3305.3,3303.4,0.61271332]
[1768574936465,0.15133,3305.2,3303.4,0.61271332]
[1768574936971,0.15133,3305.1,3303.4,0.61271332]
[1768574937170,0.77832497,3305.1,3303.1,0.15142]
[1768574937370,0.62699497,3304.9,3302.9,0.61271332]
[1768574937571,0.62699497,3304.9,3302.9,41.56414332]
[1768574937878,0.15133,3305.0,3303.0,0.61271332]
[1768574939378,1.87082591,3304.8,3303.0,0.61271332]
[1768574939575,0.62699497,3304.7,3302.5,0.61271332]
[1768574939984,0.62699497,3304.7,3302.5,41.41271332]
[1768574940380,0.62699497,3304.5,3302.5,41.41271332]
[1768574940582,1.87082591,3304.3,3302.5,0.61271332]
[1768574940779,2.49782088,3304.3,3302.5,0.61271332]
[1768574941084,0.62699497,3304.9,3302.7,0.61583354]
[1768574941482,0.62699497,3304.9,3302.8,0.61271332]
[1768574941785,0.15133,3305.1,3302.8,0.61271332]
[1768574942184,0.62699497,3305.0,3302.8,0.61271332]
[1768574942383,0.62699497,3304.5,3302.7,0.00312022]
[1768574943077,0.15136,3304.4,3302.7,0.00312022]
[1768574943277,2.49782088,3304.1,3302.7,0.00312022]
[1768574943478,0.77837497,3304.0,3302.7,0.00312022]
[1768574943675,0.77837497,3303.9,3302.7,0.00312022]
[1768574943873,0.77837497,3303.9,3302.4,3.85426221]
[1768574944076,0.15139,3303.7,3302.4,3.85426221]
[1768574944377,2.49782088,3303.6,3301.7,0.15148]
[1768574944581,1.87082591,3303.1,3301.6,1.06203106]
[1768574944882,0.00289961,3303.1,3301.6,1.0656626]
[1768574945788,2.50072049,3303.1,3301.6,1.0656626]
[1768574945976,0.91527697,3303.0,3301.6,1.0656626]
[1768574946173,2.50072049,3303.1,3301.6,1.0656626]
[1768574946376,0.91524716,3303.0,3301.6,1.0656626]
[1768574946577,2.50072049,3303.1,3301.6,1.0656626]
[1768574946884,0.9147463,3303.0,3301.6,1.0656626]
[1768574947187,2.50072049,3303.1,3301.6,1.0656626]
[1768574948281,0.00289961,3303.1,3301.6,1.0656626]
[1768574949184,1.54094035,3303.0,3301.6,1.0656626]
[1768574949378,0.62699497,3303.0,3301.6,1.0656626]
[1768574950279,0.77842497,3303.0,3301.6,1.0656626]
[1768574952389,0.00289961,3303.1,3301.6,1.67837592]
[1768574956393,0.00289961,3303.1,3301.6,1.0656626]
[1768574956692,2.64925088,3303.0,3301.6,1.0656626]
[1768574957588,2.64925088,3303.0,3301.6,0.00363154]
[1768574957789,0.00289961,3303.1,3301.6,0.61634486]
[1768574957989,0.00289961,3303.1,3301.9,0.61271332]
[1768574958589,0.00289961,3303.1,3301.9,0.76419332]
[1768574959200,0.00289961,3303.1,3302.1,0.61271332]
[1768574959394,4.72,3304.4,3302.3,0.15146]
[1768574959698,2.49782088,3304.2,3302.3,0.15146]
[1768574959894,0.77837497,3304.1,3302.1,0.61271332]
[1768574960098,1.87082591,3303.7,3301.6,0.61634486]
[1768574960397,1.87082591,3303.2,3301.6,0.61634486]
[1768574960696,1.87370523,3303.2,3301.6,0.00363154]
[1768574963005,0.15144,3302.6,3301.6,0.00363154]
[1768574963599,0.15144,3302.6,3300.6,41.57785743]
[1768574963993,0.15144,3302.6,3300.6,0.77785743]
[1768574964599,1.87082591,3302.2,3300.6,0.00392439]
[1768574964997,2.47725899,3302.2,3300.6,0.00392439]
[1768574965394,0.60643308,3302.1,3300.6,0.00392439]
[1768574965905,1.52042099,3302.0,3300.6,0.00392439]
[1768574966093,1.52042099,3301.9,3300.6,0.00392439]
[1768574966292,0.91398791,3301.8,3300.6,0.00392439]
[1768574968103,0.60643308,3301.7,3300.6,0.00392439]
[1768574968402,0.60643308,3301.7,3299.8,5.03270279]
[1768574969306,1.54189924,3301.6,3299.8,5.03615165]
[1768574969505,0.91449343,3301.5,3299.8,5.03615165]
[1768574969804,0.62740581,3301.6,3299.8,5.03615165]
[1768574970004,0.91405368,3301.5,3299.8,5.03615165]
[1768574970199,0.62740581,3301.6,3299.8,5.65914288]
[1768574970505,0.91405183,3301.5,3299.8,5.65914288]
[1768574970696,0.62740581,3301.6,3299.8,5.65914288]
[1768574970890,0.91385088,3301.5,3299.8,5.03615165]
[1768574971092,0.62740581,3301.1,3298.9,0.62299123]
[1768574971297,0.91385088,3301.0,3299.1,2.01430965]
[1768574971602,0.91385088,3300.9,3299.1,2.01430965]
[1768574971796,0.62740581,3301.1,3299.1,2.01430965]
[1768574971996,0.91336984,3301.0,3299.1,2.01701366]
[1768574972301,0.91336984,3300.9,3299.1,1.39402243]
[1768574972498,1.69230565,3300.8,3299.1,1.39402243]
[1768574972804,0.91319111,3300.7,3299.1,1.39402243]
[1768574973104,0.63004449,3300.8,3299.1,1.39402243]
[1768574973507,0.63004449,3300.8,3299.1,0.00270401]
[1768574973700,1.54032158,3300.7,3299.1,0.00270401]
[1768574973899,0.62740581,3300.7,3299.1,0.00270401]
[1768574974098,0.15154,3300.6,3299.1,0.00270401]
[1768574974405,0.77894581,3300.6,3299.1,0.00270401]
[1768574974704,0.62740581,3300.4,3298.3,0.62299123]
[1768574974902,0.62740581,3300.2,3297.8,0.77465123]
[1768574975105,1.53962224,3300.1,3297.9,0.62299123]
[1768574975302,0.62740581,3300.1,3297.9,0.62299123]
[1768574975503,1.76708685,3300.8,3297.9,0.00300498]
[1768574975504,0.15157,3299.8,3297.9,0.00300498]
[1768574975806,1.69029296,3299.7,3297.9,0.00300498]
[1768574976002,1.53871296,3299.6,3297.9,0.00300498]
[1768574976204,1.53862234,3299.5,3297.9,0.00300498]
[1768574976399,0.62740581,3299.3,3297.9,0.00300498]
[1768574976595,0.77900581,3299.3,3297.9,0.00300498]
[1768574976814,0.62740581,3299.1,3297.0,1.38013942]
[1768574976993,0.62740581,3298.9,3297.0,1.38013942]
[1768574977311,0.62740581,3299.3,3297.1,0.62299123]
[1768574977499,0.90819818,3299.2,3297.1,0.62299123]
[1768574977694,1.53560399,3299.1,3297.1,0.62568246]
[1768574977900,0.62740581,3299.1,3297.1,0.62568246]
[1768574978808,0.62740581,3299.7,3297.3,0.62299123]
[1768574979001,1.53461141,3299.6,3297.3,0.62299123]
[1768574979194,0.24346213,3300.2,3297.3,0.62299123]
[1768574979195,0.62740581,3299.4,3297.3,0.62299123]
[1768574979603,0.77899581,3299.4,3297.1,0.00269123]
[1768574979909,0.62740581,3299.0,3297.1,0.00269123]
[1768574980699,0.77903581,3298.5,3297.0,1.38013942]
[1768574980908,0.77903581,3298.5,3296.2,0.62299123]
[1768574981109,0.62740581,3298.3,3296.2,0.62299123]
[1768574981804,0.63091038,3298.3,3296.2,0.62661969]
[1768574984312,0.00350457,3298.3,3296.2,0.77834969]
[1768574984913,0.77906581,3298.0,3296.2,0.00362846]
[1768574985624,0.62740581,3297.8,3296.2,0.00362846]
[1768574985918,0.77907581,3297.8,3296.2,0.00362846]
[1768574986714,0.62740581,3297.6,3295.1,0.62299123]
[1768574986903,1.76444817,3298.0,3295.1,0.62299123]
[1768574986904,0.77908581,3297.4,3295.1,0.62299123]
[1768574987301,0.62740581,3297.2,3295.1,0.62299123]
[1768574987506,0.77909581,3297.2,3295.1,0.62299123]
[1768574987708,0.15172,3296.7,3295.1,0.00279446]
[1768574988616,0.77912581,3296.7,3295.1,0.00279446]
[1768574988916,0.77909581,3297.3,3295.1,0.62578569]
[1768574989113,0.62740581,3297.1,3295.1,0.62578569]
[1768574989616,0.62740581,3297.1,3295.1,0.00279446]
[1768574990421,3.66140581,3297.1,3295.1,0.62578569]
[1768574990819,0.62740581,3297.0,3295.1,0.62578569]
[1768574992818,0.15169,3297.2,3295.1,0.62578569]
[1768574994317,0.57433618,3297.5,3295.3,0.55710901]
[1768574994615,0.57433618,3297.5,3295.4,0.55710901]
[1768574996113,0.57433618,3297.3,3295.4,0.55710901]
[1768574996419,0.57433618,3297.3,3295.3,0.15178]
[1768574997614,3.60833618,3297.8,3295.5,0.55710901]
[1768574997815,0.57433618,3297.6,3295.6,0.15176]
[1768574998017,0.57433618,3297.6,3295.6,0.70886901]
[1768574998825,0.57433618,3297.6,3295.7,0.55710901]
[1768574999322,0.15166,3297.9,3295.7,0.55710901]
[1768574999511,1.48129512,3297.8,3295.7,0.55710901]
[1768574999711,1.48129512,3297.7,3295.7,0.55710901]
[1768575000024,0.57433618,3297.7,3295.7,0.55710901]
[1768575000218,0.15166,3297.8,3295.9,0.55710901]
[1768575000421,0.57433618,3298.2,3296.0,0.55710901]
[1768575000621,0.57433618,3298.0,3295.4,0.55710901]
[1768575000826,0.57433618,3297.7,3295.4,0.55710901]
[1768575001022,0.90796243,3297.6,3295.5,41.35710901]
[1768575001327,0.90801381,3297.5,3295.5,0.55710901]
[1768575001525,0.57433618,3297.3,3295.5,0.55710901]
[1768575001726,0.57433618,3296.9,3295.1,0.00279446]
[1768575002028,0.90801381,3296.8,3295.1,0.00279446]
[1768575002624,0.90801381,3296.8,3295.2,0.55710901]
[1768575002818,0.57433618,3297.4,3295.2,0.55710901]
[1768575003021,0.90955692,3297.3,3295.2,0.55710901]
[1768575003224,0.90955692,3297.2,3295.2,0.55710901]
[1768575003424,0.57433618,3297.9,3295.6,0.15176]
[1768575003730,0.57433618,3297.7,3295.7,0.55710901]
[1768575004028,0.91076038,3297.6,3295.8,0.70886901]
[1768575004222,0.91076038,3297.5,3295.9,0.55710901]
[1768575004429,0.91076038,3297.4,3295.9,0.55710901]
[1768575004630,0.91076038,3297.3,3295.9,0.55710901]
[1768575004829,0.91237106,3297.2,3295.9,0.55710901]
[1768575005030,0.15167,3297.7,3295.9,0.55710901]
[1768575005324,0.57433618,3297.5,3295.4,0.55710901]
[1768575005523,1.4866874,3297.4,3295.4,0.55710901]
[1768575005734,1.4866874,3297.3,3295.4,0.55710901]
[1768575005924,0.91235122,3297.2,3295.4,0.55710901]
[1768575007321,0.91235122,3297.2,3295.1,0.00279446]
[1768575007322,0.57433618,3297.1,3295.1,0.00279446]
[1768575007520,0.57433618,3296.9,3295.1,0.00279446]
[1768575007826,0.72606618,3296.5,3295.1,0.00279446]
[1768575008030,0.91235122,3296.4,3295.1,0.00279446]
[1768575010128,0.91235122,3296.3,3295.1,0.00279446]
[1768575010323,0.91235122,3296.2,3295.1,0.00279446]
[1768575010528,0.91235122,3296.1,3295.1,0.00279446]
[1768575010739,0.91235122,3296.0,3295.1,0.00279446]
[1768575011034,0.3177162,3295.9,3295.1,0.00279446]
[1768575011223,0.00232755,3295.9,3295.1,0.00279446]
[1768575011928,2.13997946,3296.7,3295.1,0.00279446]
[1768575012125,2.13997946,3296.9,3295.1,0.64281991]
[1768575012323,2.13997946,3297.3,3295.1,0.49102991]
[1768575012521,0.72601618,3297.5,3295.7,0.15176]
[1768575012522,0.57433618,3297.5,3295.7,0.15176]
[1768575012726,2.13997946,3297.6,3295.7,0.63999545]
[1768575013130,0.00370063,3297.6,3296.0,0.15174]
[1768575013336,0.00370063,3297.6,3295.7,0.48823545]
[1768575013540,0.00370063,3297.6,3296.3,0.63501294]
[1768575014232,0.00370063,3297.6,3295.8,0.15175]
[1768575014630,0.57803681,3297.6,3295.8,0.15175]
[1768575016334,0.57803681,3297.6,3295.9,0.15175]
[1768575018645,0.57803681,3297.6,3296.0,0.15175]
[1768575019232,0.57803681,3297.6,3295.3,40.8]
[1768575019233,0.00370063,3297.6,3296.1,0.49990002]
[1768575019438,0.00370063,3297.6,3296.4,0.15173]
[1768575020040,0.00370063,3297.6,3295.7,0.15176]
[1768575020242,0.00370063,3297.6,3295.8,3.18676]
[1768575020438,0.00370063,3297.6,3295.8,3.035]
[1768575021745,0.00370063,3297.6,3296.0,0.15174]
[1768575023643,0.58264309,3297.6,3296.0,0.15174]
[1768575023835,0.91343804,3297.5,3296.0,0.15174]
[1768575024035,0.00370063,3297.6,3296.0,0.15174]
[1768575024244,0.00370063,3297.6,3296.0,0.55184209]
[1768575025048,0.00370063,3297.6,3296.4,0.15173]
[1768575027141,0.00370063,3297.6,3296.0,0.70358209]
[1768575027341,0.57894246,3298.5,3296.3,0.57405577]
[1768575027543,0.91318664,3298.4,3296.3,0.57405577]
[1768575027746,0.57894246,3299.1,3296.4,40.8]
[1768575027944,0.91323796,3299.0,3297.0,0.1517]
[1768575028139,0.91323796,3298.9,3297.0,0.1517]
[1768575028341,0.91323796,3298.8,3297.0,0.1517]
[1768575029244,0.00291903,3298.9,3296.9,0.59030595]
[1768575029645,0.00291903,3298.9,3297.6,0.15167]
[1768575029848,0.00291903,3298.9,3297.6,0.15412174]
[1768575031453,0.00291903,3298.9,3297.6,0.00245174]
[1768575031650,0.59644455,3298.9,3297.6,0.00245174]
[1768575036958,0.00291903,3298.9,3297.6,0.00245174]
[1768575037865,0.00291903,3298.9,3297.6,0.15412174]
[1768575039152,0.00291903,3298.9,3297.6,0.00245174]
[1768575039359,0.74509552,3299.9,3298.0,0.15165]
[1768575039556,0.59352552,3299.7,3298.0,0.15165]
[1768575040464,0.59703778,3299.7,3298.0,0.15165]
[1768575040764,0.59703778,3299.7,3297.6,0.00245174]
[1768575041159,0.59703778,3299.7,3297.6,0.15412174]
[1768575042357,0.59352552,3299.5,3297.6,0.15412174]
[1768575044470,0.59352552,3299.3,3297.6,0.15412174]
[1768575044865,0.59352552,3299.1,3297.6,0.00245174]
[1768575046260,0.59352552,3298.7,3296.5,3.033]
[1768575046871,0.59352552,3298.7,3296.4,40.8]
[1768575047073,0.59352552,3298.7,3296.5,6.72]
[1768575047371,0.59352552,3298.5,3296.7,0.15171]
[1768575047571,1.50591752,3298.4,3296.5,0.00307746]
[1768575047768,0.59352552,3298.2,3296.5,0.00307746]
[1768575047976,0.59352552,3298.0,3296.5,0.00307746]
[1768575053469,0.6724813,3298.6,3296.6,0.15172]
[1768575053669,0.91292996,3298.5,3296.6,0.15172]
[1768575053870,0.91292996,3298.4,3296.6,0.15172]
[1768575054071,0.6724813,3298.6,3296.6,0.15172]
[1768575054279,1.58540635,3298.5,3296.6,0.15172]
[1768575054470,0.91292505,3298.4,3296.6,0.15172]
[1768575054866,0.6724813,3298.0,3296.5,0.00307746]
[1768575055079,0.6724813,3297.5,3295.3,0.15178]
[1768575055377,0.6724813,3297.3,3295.3,0.15178]
[1768575055579,0.6724813,3297.3,3295.4,40.8]
[1768575055979,0.67477618,3297.3,3295.4,40.80319868]
[1768575056776,0.67477618,3297.3,3295.7,0.15176]
[1768575056973,0.00229488,3297.3,3296.0,0.15174]
[1768575059284,0.00229488,3297.3,3296.1,3.83674]
[1768575059582,0.00229488,3297.3,3296.1,0.15174]
[1768575059991,0.67477618,3297.3,3295.4,40.95496868]
[1768575060188,0.67477618,3297.3,3295.5,3.686]
[1768575060578,0.67477618,3297.3,3295.5,3.83777]
[1768575060890,0.67477618,3297.3,3295.6,0.15176]
[1768575062075,0.67477618,3297.3,3295.4,0.00319868]
[1768575064091,0.67477618,3297.3,3295.4,3.69419868]
[1768575064787,0.67477618,3297.3,3295.4,0.00319868]
[1768575064788,0.6724813,3297.0,3295.4,0.00319868]
[1768575065978,0.00229488,3297.3,3295.6,0.15176]
[1768575067488,0.67477618,3297.3,3295.7,3.691]
[1768575067884,0.67477618,3297.3,3295.7,3.84276]
[1768575071696,0.67477618,3297.3,3295.4,0.00319868]
[1768575072197,0.67477618,3297.3,3295.5,0.15177]
[1768575072791,0.00229488,3297.3,3295.4,0.00319868]
[1768575072988,0.6724813,3296.8,3295.4,0.00319868]
[1768575073188,0.6724813,3296.6,3295.4,0.00319868]
[1768575075006,0.6724813,3296.4,3295.4,0.00319868]
[1768575075892,0.6724813,3296.2,3294.3,0.15182]
[1768575076103,0.6724813,3296.0,3294.3,0.15182]
[1768575076800,0.6724813,3296.0,3294.3,0.15454973]
[1768575077595,0.6724813,3296.0,3294.4,0.15182]
[1768575079402,0.6724813,3296.0,3294.3,3.69272973]
[1768575079903,0.6724813,3296.0,3294.3,0.00272973]
[1768575080097,0.8242313,3296.0,3294.3,0.00272973]
[1768575080301,0.6724813,3295.7,3294.3,0.00272973]
[1768575080596,0.6724813,3295.5,3294.3,0.00272973]
[1768575080803,0.6724813,3295.3,3294.3,0.00272973]
[1768575081495,0.6724813,3295.3,3293.5,40.8]
[1768575081689,0.6724813,3295.3,3293.5,44.491]
[1768575081886,0.74132559,3295.1,3293.5,44.491]
[1768575082091,0.74132559,3295.1,3293.2,0.15187]
[1768575082492,0.74132559,3295.1,3293.2,0.15519494]
[1768575082686,0.74132559,3294.9,3293.2,40.95519494]
[1768575082892,0.74357798,3294.9,3293.2,40.95519494]
[1768575083387,0.00225239,3294.9,3293.4,1.7663454]
[1768575083686,0.00225239,3294.9,3293.6,0.15185]
[1768575083886,0.00225239,3294.9,3293.2,41.55216836]
[1768575084105,0.74357798,3294.9,3293.2,44.49732494]
[1768575084303,0.74357798,3294.9,3293.2,0.00332494]
[1768575084602,0.74132559,3294.7,3293.2,0.00332494]
[1768575084797,0.74132559,3294.5,3293.2,0.00332494]
[1768575086496,1.76859779,3294.9,3292.6,1.24540752]
[1768575086497,0.15184,3294.1,3292.6,1.24540752]
[1768575086695,0.74132559,3293.8,3292.6,0.43919461]
[1768575086893,0.74132559,3293.8,3291.7,3.036]
[1768575087090,0.89317559,3293.8,3291.3,0.90080342]
[1768575087294,0.74132559,3293.6,3291.5,0.90079342]
[1768575087598,0.74132559,3293.6,3291.6,0.15195]
[1768575088702,0.74132559,3293.6,3291.6,0.96696904]
[1768575089201,0.78462034,3293.3,3291.5,0.00352436]
[1768575089504,0.93650034,3293.1,3291.5,0.00352436]
[1768575090500,0.78462034,3293.8,3291.5,0.00352436]
[1768575090702,1.68872531,3293.7,3291.5,0.00352436]
[1768575090894,0.78462034,3293.7,3291.5,0.8185434]
[1768575091297,0.78462034,3293.7,3291.7,0.15194]
[1768575091600,0.78462034,3294.3,3292.2,0.81501904]
[1768575092599,0.78687273,3294.9,3292.7,0.96691904]
[1768575092909,0.78687273,3294.9,3292.8,0.96690904]
[1768575093104,0.00225239,3294.9,3293.0,0.81501904]
[1768575093299,0.00225239,3294.9,3293.5,0.81501904]
[1768575093607,0.78462034,3296.1,3293.7,0.81501904]
[1768575093805,0.78462034,3296.1,3293.1,3.037]
[1768575093806,0.78462034,3296.1,3294.0,0.81501904]
[1768575094195,0.78462034,3296.7,3294.2,0.81501904]
[1768575094396,0.90491704,3296.6,3294.2,0.81501904]
[1768575094603,0.00362715,3296.6,3294.2,0.81860579]
[1768575095306,0.00362715,3296.6,3294.4,0.81501904]
[1768575095604,0.00362715,3296.6,3294.5,0.96682904]
[1768575095806,0.00362715,3296.6,3294.7,0.81501904]
[1768575096602,0.00362715,3296.6,3294.8,0.81501904]
[1768575097003,0.93996749,3296.6,3294.2,0.81860579]
[1768575098107,0.78462034,3296.4,3294.2,0.81860579]
[1768575099511,0.78462034,3296.4,3294.2,41.61860579]
[1768575100707,0.9068107,3296.3,3294.2,41.61860579]
[1768575100909,0.78462034,3296.4,3294.2,41.61860579]
[1768575101110,0.9068076,3296.3,3294.2,41.61860579]
[1768575101310,0.78462034,3296.4,3294.2,41.61860579]
[1768575101512,1.69185539,3296.3,3294.2,41.61860579]
[1768575101710,0.78462034,3296.3,3294.2,41.61860579]
[1768575102114,0.15173,3296.5,3294.3,0.96683904]
[1768575102303,0.90767878,3296.4,3294.3,0.96683904]
[1768575102502,0.15173,3296.5,3294.3,0.96683904]
[1768575102713,0.90768,3296.4,3294.3,0.96683904]
[1768575102905,0.15173,3296.5,3294.3,0.96683904]
[1768575103104,0.90768024,3296.4,3294.3,0.96683904]
[1768575103302,0.15173,3296.5,3294.3,0.96683904]
[1768575103506,0.15173,3296.5,3294.5,0.81501904]
[1768575103711,0.93635034,3296.5,3294.5,0.81501904]
[1768575103908,0.93635034,3296.5,3294.5,4.50701904]
[1768575104321,0.93635034,3296.5,3294.6,0.81501904]
[1768575104507,0.00362715,3296.6,3294.7,0.81501904]
[1768575104701,0.00362715,3296.6,3295.1,0.81501904]
[1768575104908,0.93628034,3298.0,3295.3,0.96679904]
[1768575105105,1.69297062,3297.9,3295.4,0.15177]
[1768575105306,0.90835028,3297.8,3295.6,0.81501904]
[1768575105508,0.78462034,3297.9,3295.5,43.836]
[1768575105509,0.78462034,3297.9,3295.8,0.81501904]
[1768575105712,0.90806847,3297.8,3295.8,0.81501904]
[1768575105913,0.00341389,3297.8,3295.9,3.693]
[1768575106311,0.00341389,3297.8,3296.0,0.81501904]
[1768575106516,0.00341389,3297.8,3296.2,0.81501904]
[1768575107015,0.78462034,3299.0,3296.7,0.81501904]
[1768575107215,0.15158,3299.6,3296.9,0.81501904]
[1768575107216,0.93620034,3299.6,3296.9,0.81501904]
[1768575107418,0.93620034,3299.6,3297.4,0.81501904]
[1768575107419,0.90700234,3299.5,3297.4,0.81501904]
[1768575107722,0.78462034,3299.6,3297.4,0.81501904]
[1768575107911,0.00273666,3299.6,3297.4,0.970442]
[1768575108112,0.00273666,3299.6,3297.4,0.818762]
[1768575108322,0.78462034,3299.5,3297.4,0.818762]
[1768575109014,0.78462034,3299.5,3297.4,0.00374296]
[1768575109204,0.78462034,3299.2,3297.4,0.00374296]
[1768575109816,0.93624034,3298.8,3297.4,0.00374296]
[1768575110119,0.93625034,3298.6,3297.4,0.00374296]
[1768575110916,0.78462034,3298.6,3296.1,0.81501904]
[1768575111116,0.15165,3298.2,3296.1,0.81501904]
[1768575111321,0.8485649,3298.1,3296.1,0.81501904]
[1768575111507,0.15165,3298.1,3296.1,0.81501904]
[1768575112209,0.6969149,3298.6,3296.1,0.81501904]
[1768575112210,0.6969149,3298.6,3296.1,0.96931806]
[1768575112416,0.6969149,3298.6,3296.3,0.73292967]
[1768575112611,0.6969149,3298.6,3296.5,0.73292967]
[1768575113006,0.15162,3298.9,3296.5,0.88464967]
[1768575113217,0.15162,3298.9,3296.6,0.15172]
[1768575113516,0.15162,3298.9,3296.7,0.73292967]
[1768575113720,3.035,3299.1,3296.7,0.73292967]
[1768575114023,0.15159,3299.5,3296.9,0.88463967]
[1768575114323,0.6969149,3299.4,3296.9,0.88463967]
[1768575114520,0.6969149,3299.4,3297.0,40.8]
[1768575115106,0.6969149,3299.4,3297.1,0.73292967]
[1768575115325,0.00273666,3299.6,3297.3,0.73292967]
[1768575115920,0.00273666,3299.6,3297.5,0.73292967]
[1768575116126,0.00273666,3299.6,3297.5,0.88459967]
[1768575116524,0.00273666,3299.6,3297.9,0.73292967]
[1768575117613,0.00273666,3299.6,3298.1,0.73292967]
[1768575117813,3.035,3300.7,3298.3,0.73292967]
[1768575118225,3.035,3300.7,3298.3,0.88456967]
[1768575119022,3.035,3300.7,3297.8,6.718]
[1768575119023,0.00253737,3300.7,3298.6,0.73292967]
[1768575119221,0.00253737,3300.7,3298.9,0.73292967]
[1768575119416,0.00253737,3300.7,3299.1,0.73292967]
[1768575119927,0.00253737,3300.7,3299.2,40.8]
[1768575120129,0.00253737,3300.7,3299.3,0.73292967]
[1768575120425,0.00253737,3300.7,3299.2,40.8]
[1768575120818,0.69945227,3300.7,3298.7,0.73292967]
[1768575121121,0.69945227,3300.7,3298.6,0.00309596]
[1768575121512,0.6969149,3300.4,3298.6,0.00309596]
[1768575121715,0.15155,3300.3,3298.6,0.00309596]
[1768575121918,0.6969149,3300.2,3298.6,0.00309596]
[1768575122826,0.00253737,3300.7,3298.6,0.00309596]
[1768575123030,0.69945227,3300.7,3298.6,0.00309596]
[1768575123227,0.15155,3300.4,3298.6,0.00309596]
[1768575123527,0.8484649,3300.4,3298.6,0.00309596]
[1768575124118,0.8484649,3300.3,3298.6,0.00309596]
[1768575124327,0.8484749,3300.1,3298.6,0.00309596]
[1768575124528,0.6969149,3300.1,3298.6,0.00309596]
[1768575124828,0.8484849,3300.0,3298.6,0.00309596]
[1768575126435,0.15159,3299.6,3297.4,0.73292967]
[1768575126628,0.6969149,3300.1,3297.7,0.73292967]
[1768575126833,0.90507217,3300.0,3297.9,0.73292967]
[1768575127032,0.6969149,3299.8,3297.4,0.73292967]
[1768575127328,0.15157,3299.9,3297.8,0.15166]
[1768575127526,0.6969149,3300.4,3298.1,0.73292967]
[1768575127836,0.90564361,3300.3,3298.1,0.73292967]
[1768575128025,0.6969149,3300.0,3298.0,0.15165]
[1768575129125,0.8484849,3299.9,3297.5,40.8]
[1768575129328,1.60331056,3299.8,3297.6,0.73292967]
[1768575129525,0.6969149,3299.8,3297.6,0.73292967]
[1768575130131,0.6969149,3299.5,3297.5,40.95168]
[1768575130326,0.6969149,3299.5,3297.5,0.15168]
[1768575130524,0.6969149,3300.1,3297.9,0.73292967]
[1768575130724,0.90732247,3300.0,3297.9,0.73292967]
[1768575131034,0.90732247,3299.9,3297.9,0.73292967]
[1768575131328,0.90732247,3299.8,3297.9,0.73292967]
[1768575131528,0.90732247,3299.7,3297.9,0.73292967]
[1768575131724,0.6969149,3300.0,3297.9,0.88458967]
[1768575131924,0.90829887,3299.9,3297.9,0.88458967]
[1768575132226,0.90829887,3299.8,3297.9,0.88458967]
[1768575132433,0.90829887,3299.7,3297.9,0.88458967]
[1768575132629,0.15156,3300.1,3298.0,0.88457967]
[1768575132828,0.90938112,3300.0,3298.0,41.68457967]
[1768575133034,0.90938112,3299.9,3298.0,41.68457967]